[Event "*** Titled Tuesday Blitz"]
[Site "Chess.com"]
[Date "2020.05.12"]
[Round "3"]
[White "chesslh19"]
[Black "umngqusho"]
[Result "1-0"]
[WhiteElo "2202"]
[BlackElo "2471"]
[TimeControl "180+1"]
[EndTime "10:30:16 PDT"]
[Termination "chesslh19 won by checkmate"]

1. e4 {[%clk 0:03:00.9]} 1... e5 {[%clk 0:02:59.5]} 2. Nf3 {[%clk 0:03:01]} 2...
Nc6 {[%clk 0:02:59.2]} 3. Bb5 {[%clk 0:03:01.2]} 3... a6 {[%clk 0:02:59.1]} 4.
Ba4 {[%clk 0:03:01.2]} 4... Nf6 {[%clk 0:02:59.4]} 5. O-O {[%clk 0:03:01.5]}
5... Be7 {[%clk 0:02:59.6]} 6. Re1 {[%clk 0:03:01.5]} 6... b5 {[%clk 0:02:59.9]}
7. Bb3 {[%clk 0:03:02.1]} 7... d6 {[%clk 0:03:00.5]} 8. c3 {[%clk 0:03:02.1]}
8... O-O {[%clk 0:03:00.7]} 9. h3 {[%clk 0:03:02.5]} 9... Na5 {[%clk 0:03:00.9]}
10. Bc2 {[%clk 0:03:02.7]} 10... c5 {[%clk 0:03:01.6]} 11. d4 {[%clk 0:03:03.4]}
11... Qc7 {[%clk 0:02:58.1]} 12. Nbd2 {[%clk 0:03:03.4]} 12... cxd4 {[%clk
0:02:57.6]} 13. cxd4 {[%clk 0:03:03.5]} 13... Nc6 {[%clk 0:02:57.8]} 14. Nb3
{[%clk 0:03:03.5]} 14... Bd7 {[%clk 0:02:45.9]} 15. Be3 {[%clk 0:03:00]} 15...
Rfc8 {[%clk 0:02:37.2]} 16. Rc1 {[%clk 0:02:56.9]} 16... Qb8 {[%clk 0:02:32.6]}
17. Bb1 {[%clk 0:02:40.4]} 17... a5 {[%clk 0:02:23.7]} 18. Qe2 {[%clk
0:02:25.3]} 18... a4 {[%clk 0:02:20.6]} 19. Nbd2 {[%clk 0:02:25]} 19... a3
{[%clk 0:02:13.5]} 20. b3 {[%clk 0:02:20.8]} 20... Bd8 {[%clk 0:01:46.1]} 21.
Nf1 {[%clk 0:02:03.1]} 21... h6 {[%clk 0:01:27.6]} 22. Ng3 {[%clk 0:01:59.5]}
22... Bb6 {[%clk 0:01:17.8]} 23. dxe5 {[%clk 0:00:50]} 23... dxe5 {[%clk
0:01:00.9]} 24. Nf5 {[%clk 0:00:27.2]} 24... Bxf5 {[%clk 0:00:47.3]} 25. exf5
{[%clk 0:00:26.6]} 25... Nd4 {[%clk 0:00:25.5]} 26. Nxd4 {[%clk 0:00:19.4]}
26... exd4 {[%clk 0:00:25]} 27. Bd2 {[%clk 0:00:16.3]} 27... Rxc1 {[%clk
0:00:22.1]} 28. Rxc1 {[%clk 0:00:16]} 28... Qe8 {[%clk 0:00:20.7]} 29. Qxe8+
{[%clk 0:00:15.7]} 29... Rxe8 {[%clk 0:00:21.6]} 30. Kf1 {[%clk 0:00:16.1]}
30... Nd5 {[%clk 0:00:18.3]} 31. Bd3 {[%clk 0:00:15.2]} 31... Nc7 {[%clk
0:00:14.3]} 32. Re1 {[%clk 0:00:14.3]} 32... Rc8 {[%clk 0:00:12.8]} 33. Rc1
{[%clk 0:00:14]} 33... Re8 {[%clk 0:00:11.7]} 34. Re1 {[%clk 0:00:14]} 34...
Rxe1+ {[%clk 0:00:11.7]} 35. Kxe1 {[%clk 0:00:13.9]} 35... Kf8 {[%clk
0:00:10.9]} 36. Bb4+ {[%clk 0:00:13.7]} 36... Ke8 {[%clk 0:00:10.7]} 37. Bxa3
{[%clk 0:00:14.2]} 37... Kd7 {[%clk 0:00:09.2]} 38. Kd1 {[%clk 0:00:13.9]} 38...
Kc6 {[%clk 0:00:09.2]} 39. Kc2 {[%clk 0:00:13.5]} 39... Nd5 {[%clk 0:00:08.7]}
40. Be4 {[%clk 0:00:12.6]} 40... f6 {[%clk 0:00:04.1]} 41. Kd3 {[%clk
0:00:12.1]} 41... b4 {[%clk 0:00:03.9]} 42. Bxd5+ {[%clk 0:00:11.4]} 42... Kxd5
{[%clk 0:00:04.2]} 43. Bxb4 {[%clk 0:00:12]} 43... Ke5 {[%clk 0:00:03.9]} 44.
Bf8 {[%clk 0:00:12.1]} 44... Kxf5 {[%clk 0:00:03.6]} 45. Bxg7 {[%clk 0:00:12.5]}
45... Kg6 {[%clk 0:00:03.8]} 46. Bf8 {[%clk 0:00:12.8]} 46... h5 {[%clk
0:00:03.4]} 47. b4 {[%clk 0:00:13.1]} 47... Kf5 {[%clk 0:00:03.5]} 48. Bc5
{[%clk 0:00:13.4]} 48... Bc7 {[%clk 0:00:03.2]} 49. b5 {[%clk 0:00:13.4]} 49...
Ke6 {[%clk 0:00:03.4]} 50. a4 {[%clk 0:00:12.5]} 50... Kd5 {[%clk 0:00:03.5]}
51. Bxd4 {[%clk 0:00:12.8]} 51... f5 {[%clk 0:00:04]} 52. b6 {[%clk 0:00:12.5]}
52... Bb8 {[%clk 0:00:03.9]} 53. a5 {[%clk 0:00:12.9]} 53... Kc6 {[%clk
0:00:04]} 54. Kc4 {[%clk 0:00:13.2]} 54... Kb7 {[%clk 0:00:04]} 55. Kb5 {[%clk
0:00:12.8]} 55... Bf4 {[%clk 0:00:03.9]} 56. a6+ {[%clk 0:00:12.9]} 56... Kb8
{[%clk 0:00:04.2]} 57. Kc6 {[%clk 0:00:13.2]} 57... Kc8 {[%clk 0:00:03.4]} 58.
b7+ {[%clk 0:00:13.4]} 58... Kd8 {[%clk 0:00:03.8]} 59. b8=Q+ {[%clk 0:00:13.4]}
59... Bxb8 {[%clk 0:00:02.9]} 60. a7 {[%clk 0:00:14]} 60... Bxa7 {[%clk
0:00:03.2]} 61. Bxa7 {[%clk 0:00:14.2]} 61... Ke7 {[%clk 0:00:04.1]} 62. Kd5
{[%clk 0:00:14.4]} 62... Kf6 {[%clk 0:00:04.5]} 63. Bb8 {[%clk 0:00:14.3]} 63...
Kg5 {[%clk 0:00:04.2]} 64. Ke5 {[%clk 0:00:14.7]} 64... f4 {[%clk 0:00:04.4]}
65. f3 {[%clk 0:00:14.3]} 65... Kh4 {[%clk 0:00:04.4]} 66. Bc7 {[%clk
0:00:13.4]} 66... Kg3 {[%clk 0:00:04.8]} 67. Kf5 {[%clk 0:00:12]} 67... Kxg2
{[%clk 0:00:04.7]} 68. Kxf4 {[%clk 0:00:12.3]} 68... Kxh3 {[%clk 0:00:05]} 69.
Kg5 {[%clk 0:00:12.3]} 69... Kg2 {[%clk 0:00:05]} 70. f4 {[%clk 0:00:11.1]}
70... h4 {[%clk 0:00:05.5]} 71. Kxh4 {[%clk 0:00:10.6]} 71... Kf3 {[%clk
0:00:05.8]} 72. Kg5 {[%clk 0:00:10.6]} 72... Ke4 {[%clk 0:00:05.9]} 73. f5
{[%clk 0:00:10.7]} 73... Kd5 {[%clk 0:00:06.3]} 74. f6 {[%clk 0:00:11.1]} 74...
Kc6 {[%clk 0:00:06.7]} 75. f7 {[%clk 0:00:11.5]} 75... Kxc7 {[%clk 0:00:06.5]}
76. f8=Q {[%clk 0:00:11.8]} 76... Kd7 {[%clk 0:00:06.7]} 77. Qf6 {[%clk
0:00:12]} 77... Ke8 {[%clk 0:00:06.7]} 78. Qg7 {[%clk 0:00:11.3]} 78... Kd8
{[%clk 0:00:06.6]} 79. Kf6 {[%clk 0:00:11.8]} 79... Kc8 {[%clk 0:00:06.9]} 80.
Ke6 {[%clk 0:00:12.3]} 80... Kb8 {[%clk 0:00:07.2]} 81. Kd6 {[%clk 0:00:12.9]}
81... Ka8 {[%clk 0:00:07.5]} 82. Kc6 {[%clk 0:00:13.5]} 82... Kb8 {[%clk
0:00:07.8]} 83. Qb7# {[%clk 0:00:14.2]} 1-0

[Event "*** Titled Tuesday Blitz"]
[Site "Chess.com"]
[Date "2020.05.12"]
[Round "3"]
[White "diablanni"]
[Black "chegueps"]
[Result "1-0"]
[WhiteElo "2311"]
[BlackElo "2505"]
[TimeControl "180+1"]
[EndTime "10:30:18 PDT"]
[Termination "diablanni won by resignation"]

1. e4 {[%clk 0:02:59.5]} 1... c5 {[%clk 0:02:58.7]} 2. Nf3 {[%clk 0:02:57.2]}
2... e6 {[%clk 0:02:58.4]} 3. d4 {[%clk 0:02:54.8]} 3... cxd4 {[%clk 0:02:58.4]}
4. Nxd4 {[%clk 0:02:54.2]} 4... Nf6 {[%clk 0:02:58]} 5. Nc3 {[%clk 0:02:53.5]}
5... Nc6 {[%clk 0:02:57.6]} 6. Ndb5 {[%clk 0:02:52.6]} 6... Bc5 {[%clk
0:02:57.2]} 7. Bf4 {[%clk 0:01:24.7]} 7... O-O {[%clk 0:02:56.3]} 8. Bc7 {[%clk
0:01:22.7]} 8... Qe7 {[%clk 0:02:56.5]} 9. Bd6 {[%clk 0:01:19.5]} 9... Bxd6
{[%clk 0:02:56.8]} 10. Qxd6 {[%clk 0:01:16.8]} 10... a6 {[%clk 0:02:56.8]} 11.
Qxe7 {[%clk 0:01:12.9]} 11... Nxe7 {[%clk 0:02:57.7]} 12. Nd6 {[%clk 0:01:12.7]}
12... Ne8 {[%clk 0:02:45.6]} 13. O-O-O {[%clk 0:01:07.3]} 13... Nxd6 {[%clk
0:02:41.3]} 14. Rxd6 {[%clk 0:01:06.4]} 14... b5 {[%clk 0:02:42.2]} 15. f3
{[%clk 0:00:58]} 15... Ra7 {[%clk 0:02:42.2]} 16. Be2 {[%clk 0:00:56.8]} 16...
Rc7 {[%clk 0:02:41.5]} 17. Rhd1 {[%clk 0:00:54.9]} 17... Rd8 {[%clk 0:02:41.7]}
18. a3 {[%clk 0:00:52.1]} 18... Bb7 {[%clk 0:02:41.9]} 19. a4 {[%clk 0:00:41]}
19... Nc8 {[%clk 0:02:31.9]} 20. R6d4 {[%clk 0:00:40.1]} 20... bxa4 {[%clk
0:02:26.3]} 21. Rxa4 {[%clk 0:00:38.8]} 21... Nb6 {[%clk 0:02:25.1]} 22. Rb4
{[%clk 0:00:37.5]} 22... Rc6 {[%clk 0:02:17.1]} 23. Na4 {[%clk 0:00:37.1]} 23...
Nxa4 {[%clk 0:02:09.1]} 24. Rxb7 {[%clk 0:00:37]} 24... Nc5 {[%clk 0:02:09.3]}
25. Ra7 {[%clk 0:00:36.6]} 25... Rdc8 {[%clk 0:02:00.3]} 26. Kb1 {[%clk
0:00:35.8]} 26... Rb8 {[%clk 0:01:58.3]} 27. b3 {[%clk 0:00:31.9]} 27... Kf8
{[%clk 0:01:55.2]} 28. Rd4 {[%clk 0:00:28.9]} 28... Ke7 {[%clk 0:01:48.5]} 29.
Kb2 {[%clk 0:00:28]} 29... Kf6 {[%clk 0:01:44.4]} 30. f4 {[%clk 0:00:25.4]}
30... g5 {[%clk 0:01:17.1]} 31. g3 {[%clk 0:00:23.6]} 31... h6 {[%clk
0:01:16.2]} 32. e5+ {[%clk 0:00:22.6]} 32... Ke7 {[%clk 0:01:12.8]} 33. Bf3
{[%clk 0:00:19.4]} 33... Rcb6 {[%clk 0:01:10.1]} 34. Bd1 {[%clk 0:00:14.9]}
34... gxf4 {[%clk 0:01:06.8]} 35. gxf4 {[%clk 0:00:14.5]} 35... Rg8 {[%clk
0:01:07.4]} 36. Rc7 {[%clk 0:00:13.2]} 36... Rc6 {[%clk 0:00:57.2]} 37. Rxc6
{[%clk 0:00:13.3]} 37... dxc6 {[%clk 0:00:58.1]} 38. Bf3 {[%clk 0:00:14.2]}
38... Rc8 {[%clk 0:00:37.4]} 39. Rd6 {[%clk 0:00:14.3]} 39... Nd7 {[%clk
0:00:24.7]} 40. Bxc6 {[%clk 0:00:13.4]} 40... Nb8 {[%clk 0:00:23.5]} 41. Bb7
{[%clk 0:00:13.2]} 41... Rc7 {[%clk 0:00:23.6]} 42. Bxa6 {[%clk 0:00:12.9]}
42... Nc6 {[%clk 0:00:24]} 43. Bc4 {[%clk 0:00:09.8]} 43... Na5 {[%clk
0:00:21.2]} 44. Bd3 {[%clk 0:00:09.7]} 44... Nc6 {[%clk 0:00:21.2]} 45. c3
{[%clk 0:00:08.8]} 45... Nd8 {[%clk 0:00:20.6]} 46. b4 {[%clk 0:00:08.5]} 46...
Nb7 {[%clk 0:00:21]} 47. Ra6 {[%clk 0:00:06.8]} 47... Rd7 {[%clk 0:00:20.5]} 48.
Kc2 {[%clk 0:00:06.5]} 48... h5 {[%clk 0:00:18.9]} 49. c4 {[%clk 0:00:05]} 49...
h4 {[%clk 0:00:18.6]} 50. Kc3 {[%clk 0:00:05.2]} 50... h3 {[%clk 0:00:18.5]} 51.
Be4 {[%clk 0:00:05]} 51... Nd8 {[%clk 0:00:18.2]} 52. b5 {[%clk 0:00:04.6]}
52... Rd1 {[%clk 0:00:18.3]} 53. Ra7+ {[%clk 0:00:04.5]} 53... Ke8 {[%clk
0:00:17.7]} 54. c5 {[%clk 0:00:04]} 54... Rc1+ {[%clk 0:00:17.7]} 55. Kb4 {[%clk
0:00:03.7]} 55... Re1 {[%clk 0:00:17.9]} 56. Ba8 {[%clk 0:00:02.4]} 56... Re2
{[%clk 0:00:17]} 57. b6 {[%clk 0:00:02.1]} 57... Rxh2 {[%clk 0:00:17]} 58. c6
{[%clk 0:00:02.3]} 58... Rb2+ {[%clk 0:00:16.5]} 59. Kc3 {[%clk 0:00:02.2]}
59... Rxb6 {[%clk 0:00:16.2]} 60. c7 {[%clk 0:00:02.6]} 60... Kd7 {[%clk
0:00:14.5]} 61. cxd8=Q+ {[%clk 0:00:01.5]} 61... Kxd8 {[%clk 0:00:15]} 62. Rxf7
{[%clk 0:00:02.1]} 62... Ra6 {[%clk 0:00:13.5]} 63. Be4 {[%clk 0:00:01.9]} 63...
Ra3+ {[%clk 0:00:13.8]} 64. Kd4 {[%clk 0:00:02.1]} 64... Ra4+ {[%clk 0:00:14.4]}
65. Ke3 {[%clk 0:00:02]} 65... Ra3+ {[%clk 0:00:14.7]} 66. Bd3 {[%clk
0:00:01.7]} 66... h2 {[%clk 0:00:15.6]} 67. Rg7 {[%clk 0:00:02.1]} 67... Ra2
{[%clk 0:00:16.5]} 68. Rh7 {[%clk 0:00:02.2]} 68... Kc8 {[%clk 0:00:14.5]} 69.
Be2 {[%clk 0:00:02.7]} 69... Ra3+ {[%clk 0:00:13.5]} 70. Kf2 {[%clk 0:00:03]}
70... Ra4 {[%clk 0:00:12.8]} 71. Kg3 {[%clk 0:00:03.4]} 71... Ra2 {[%clk
0:00:12.2]} 72. Bf3 {[%clk 0:00:04.1]} 72... Kd8 {[%clk 0:00:09.4]} 73. Rxh2
{[%clk 0:00:04.7]} 73... Ke8 {[%clk 0:00:10.3]} 74. Rxa2 {[%clk 0:00:04.8]} 1-0

[Event "*** Titled Tuesday Blitz"]
[Site "Chess.com"]
[Date "2020.05.12"]
[Round "3"]
[White "SCIM"]
[Black "ahmadzada13"]
[Result "1-0"]
[WhiteElo "2560"]
[BlackElo "2733"]
[TimeControl "180+1"]
[EndTime "10:30:19 PDT"]
[Termination "SCIM won by resignation"]

1. d4 {[%clk 0:03:00.9]} 1... Nf6 {[%clk 0:02:59.8]} 2. c4 {[%clk 0:03:01]} 2...
c5 {[%clk 0:03:00.1]} 3. d5 {[%clk 0:03:00.7]} 3... e6 {[%clk 0:03:00.2]} 4. Nc3
{[%clk 0:03:00.1]} 4... exd5 {[%clk 0:03:00]} 5. cxd5 {[%clk 0:03:01]} 5... d6
{[%clk 0:02:59.6]} 6. e4 {[%clk 0:03:01.1]} 6... g6 {[%clk 0:02:59.6]} 7. Nge2
{[%clk 0:03:01.5]} 7... Bg7 {[%clk 0:02:59.2]} 8. Ng3 {[%clk 0:03:02.1]} 8...
O-O {[%clk 0:02:59.2]} 9. Be2 {[%clk 0:03:01.7]} 9... Re8 {[%clk 0:02:57.4]} 10.
O-O {[%clk 0:03:00.9]} 10... Nbd7 {[%clk 0:02:55.9]} 11. f3 {[%clk 0:02:54.2]}
11... h5 {[%clk 0:02:54.2]} 12. Bg5 {[%clk 0:02:53.5]} 12... Qb6 {[%clk
0:02:52.8]} 13. Qd2 {[%clk 0:02:42]} 13... Nh7 {[%clk 0:02:52.4]} 14. Be3 {[%clk
0:02:39.9]} 14... Ne5 {[%clk 0:02:49.5]} 15. h3 {[%clk 0:02:33.5]} 15... h4
{[%clk 0:02:41]} 16. Nh1 {[%clk 0:02:32.4]} 16... f5 {[%clk 0:02:41.4]} 17. Nf2
{[%clk 0:02:28.5]} 17... Qd8 {[%clk 0:02:34.5]} 18. Rae1 {[%clk 0:02:24.6]}
18... Bd7 {[%clk 0:02:23.3]} 19. Bh6 {[%clk 0:02:06]} 19... Nf7 {[%clk
0:01:35.4]} 20. Bxg7 {[%clk 0:02:03.4]} 20... Kxg7 {[%clk 0:01:36.3]} 21. f4
{[%clk 0:01:58.8]} 21... fxe4 {[%clk 0:01:25.1]} 22. Ncxe4 {[%clk 0:01:53.9]}
22... Bf5 {[%clk 0:01:22.8]} 23. Bg4 {[%clk 0:01:45.9]} 23... Kg8 {[%clk
0:01:08.8]} 24. Bxf5 {[%clk 0:01:33.7]} 24... gxf5 {[%clk 0:01:08.3]} 25. Nc3
{[%clk 0:01:31]} 25... Qf6 {[%clk 0:01:00.9]} 26. Rxe8+ {[%clk 0:01:21.2]} 26...
Rxe8 {[%clk 0:01:01.8]} 27. Re1 {[%clk 0:01:21.3]} 27... Rxe1+ {[%clk
0:00:54.7]} 28. Qxe1 {[%clk 0:01:22.2]} 28... Nf8 {[%clk 0:00:54.8]} 29. Kh1
{[%clk 0:01:13.5]} 29... Ng6 {[%clk 0:00:51.8]} 30. Qe3 {[%clk 0:00:58.2]} 30...
Kg7 {[%clk 0:00:48.7]} 31. Nd3 {[%clk 0:00:50.4]} 31... a6 {[%clk 0:00:47.5]}
32. a4 {[%clk 0:00:49.8]} 32... Nfh8 {[%clk 0:00:37.7]} 33. a5 {[%clk
0:00:44.8]} 33... Ne7 {[%clk 0:00:37.3]} 34. Ne1 {[%clk 0:00:27.9]} 34... Nhg6
{[%clk 0:00:36.9]} 35. Nf3 {[%clk 0:00:27.9]} 35... Kh6 {[%clk 0:00:28.1]} 36.
Qe1 {[%clk 0:00:21.3]} 36... Kh5 {[%clk 0:00:16.1]} 37. Qe2 {[%clk 0:00:20.1]}
37... Kh6 {[%clk 0:00:16.2]} 38. Qe1 {[%clk 0:00:19.8]} 38... Kg7 {[%clk
0:00:13.7]} 39. Ng5 {[%clk 0:00:18.5]} 39... Nxf4 {[%clk 0:00:10.3]} 40. Qxh4
{[%clk 0:00:17.9]} 40... Nexd5 {[%clk 0:00:07.5]} 41. Qh7+ {[%clk 0:00:12.1]}
41... Kf8 {[%clk 0:00:07.4]} 42. Nxd5 {[%clk 0:00:11.5]} 42... Nxd5 {[%clk
0:00:08.3]} 43. Qh5 {[%clk 0:00:10]} 43... Kg7 {[%clk 0:00:06.6]} 44. Qh7+
{[%clk 0:00:09.9]} 44... Kf8 {[%clk 0:00:07.1]} 45. Qh5 {[%clk 0:00:10.2]} 45...
Ke7 {[%clk 0:00:07.6]} 46. Qh7+ {[%clk 0:00:09.6]} 46... Kd8 {[%clk 0:00:07.6]}
47. h4 {[%clk 0:00:07.7]} 47... Ne7 {[%clk 0:00:06.7]} 48. Qh5 {[%clk
0:00:06.3]} 48... Qxb2 {[%clk 0:00:06.3]} 49. Qf7 {[%clk 0:00:05.7]} 49... Qc1+
{[%clk 0:00:06.1]} 50. Kh2 {[%clk 0:00:05.6]} 50... Qf4+ {[%clk 0:00:06.7]} 51.
g3 {[%clk 0:00:03.3]} 51... Qf2+ {[%clk 0:00:07]} 52. Kh3 {[%clk 0:00:03.5]}
52... Qf1+ {[%clk 0:00:07.9]} 53. Kh2 {[%clk 0:00:03.9]} 53... Qe2+ {[%clk
0:00:08.2]} 54. Kh3 {[%clk 0:00:03.7]} 54... Qg4+ {[%clk 0:00:08]} 55. Kh2
{[%clk 0:00:03.7]} 55... c4 {[%clk 0:00:07.3]} 56. Ne6+ {[%clk 0:00:03.8]} 56...
Kd7 {[%clk 0:00:07.6]} 57. Nf8+ {[%clk 0:00:04]} 57... Kd8 {[%clk 0:00:07.9]}
58. Ne6+ {[%clk 0:00:04.7]} 58... Kd7 {[%clk 0:00:08.3]} 59. Nf8+ {[%clk
0:00:04.7]} 59... Kc6 {[%clk 0:00:08.1]} 60. Qxe7 {[%clk 0:00:04.7]} 60... c3
{[%clk 0:00:08.3]} 61. Qe8+ {[%clk 0:00:04.4]} 61... Kc5 {[%clk 0:00:07.7]} 62.
Ne6+ {[%clk 0:00:04.3]} 62... Kb4 {[%clk 0:00:08]} 63. Nf4 {[%clk 0:00:04.2]}
63... Qf3 {[%clk 0:00:07.4]} 64. Qe7 {[%clk 0:00:02.9]} 64... c2 {[%clk
0:00:06.4]} 65. Qxd6+ {[%clk 0:00:02.7]} 65... Kb3 {[%clk 0:00:06.8]} 66. Qb6+
{[%clk 0:00:02.2]} 66... Ka2 {[%clk 0:00:06.2]} 67. Qc5 {[%clk 0:00:01.7]} 67...
Qd1 {[%clk 0:00:05.8]} 68. Qc4+ {[%clk 0:00:01.4]} 68... Kb2 {[%clk 0:00:06]}
69. Nd3+ {[%clk 0:00:01.5]} 69... Qxd3 {[%clk 0:00:06.1]} 70. Qxd3 {[%clk
0:00:01.5]} 70... c1=Q {[%clk 0:00:07]} 71. Qd4+ {[%clk 0:00:01.7]} 71... Kb3
{[%clk 0:00:06.5]} 72. Qd5+ {[%clk 0:00:01.8]} 72... Kb2 {[%clk 0:00:06.3]} 73.
Qxf5 {[%clk 0:00:02.5]} 73... Qd2+ {[%clk 0:00:05.9]} 74. Kh3 {[%clk 0:00:03.1]}
74... Qe1 {[%clk 0:00:06]} 75. Qf6+ {[%clk 0:00:03.4]} 75... Kb3 {[%clk
0:00:05.8]} 76. Qf3+ {[%clk 0:00:04.1]} 76... Kc2 {[%clk 0:00:06]} 77. h5 {[%clk
0:00:04.8]} 77... Qxa5 {[%clk 0:00:05.7]} 78. h6 {[%clk 0:00:03.5]} 78... Qg5
{[%clk 0:00:06.1]} 79. Qe4+ {[%clk 0:00:02.6]} 79... Kc3 {[%clk 0:00:06.3]} 80.
Qf3+ {[%clk 0:00:02.7]} 80... Kd4 {[%clk 0:00:05.5]} 81. Qf4+ {[%clk 0:00:03]}
81... Qxf4 {[%clk 0:00:05.6]} 82. gxf4 {[%clk 0:00:03.9]} 82... a5 {[%clk
0:00:05.9]} 83. h7 {[%clk 0:00:04.8]} 1-0

[Event "*** Titled Tuesday Blitz"]
[Site "Chess.com"]
[Date "2020.05.12"]
[Round "3"]
[White "Quaternitychess"]
[Black "David_Paravyan"]
[Result "1/2-1/2"]
[WhiteElo "2552"]
[BlackElo "2896"]
[TimeControl "180+1"]
[EndTime "10:30:21 PDT"]
[Termination "Game drawn by repetition"]

1. e4 {[%clk 0:03:00.9]} 1... c5 {[%clk 0:02:58.4]} 2. Nc3 {[%clk 0:03:01.5]}
2... Nc6 {[%clk 0:02:57.9]} 3. f4 {[%clk 0:03:01.2]} 3... g6 {[%clk 0:02:56.9]}
4. Nf3 {[%clk 0:03:01.7]} 4... Bg7 {[%clk 0:02:56.8]} 5. Bb5 {[%clk 0:03:02.4]}
5... Nd4 {[%clk 0:02:47]} 6. O-O {[%clk 0:03:02.1]} 6... Nxb5 {[%clk 0:02:45.9]}
7. Nxb5 {[%clk 0:03:01.3]} 7... d6 {[%clk 0:02:36.6]} 8. d3 {[%clk 0:02:52.1]}
8... a6 {[%clk 0:02:32.5]} 9. Nc3 {[%clk 0:02:51.4]} 9... b5 {[%clk 0:02:30.6]}
10. Qe1 {[%clk 0:02:50.9]} 10... e6 {[%clk 0:02:29.5]} 11. e5 {[%clk 0:02:45.4]}
11... d5 {[%clk 0:02:27.6]} 12. Qf2 {[%clk 0:02:40.5]} 12... Qc7 {[%clk
0:02:22.6]} 13. d4 {[%clk 0:02:13.5]} 13... cxd4 {[%clk 0:02:08.2]} 14. Nxd4
{[%clk 0:02:12.6]} 14... Ne7 {[%clk 0:02:08.5]} 15. Be3 {[%clk 0:02:06.8]} 15...
O-O {[%clk 0:01:55]} 16. a3 {[%clk 0:02:06.3]} 16... Bd7 {[%clk 0:01:52.6]} 17.
Qd2 {[%clk 0:01:59.6]} 17... Rac8 {[%clk 0:01:37.1]} 18. Nce2 {[%clk 0:01:48.8]}
18... f6 {[%clk 0:01:34.4]} 19. exf6 {[%clk 0:01:47.1]} 19... Bxf6 {[%clk
0:01:35.3]} 20. c3 {[%clk 0:01:45.9]} 20... a5 {[%clk 0:01:34.7]} 21. Kh1 {[%clk
0:01:33.3]} 21... Qd6 {[%clk 0:00:53.5]} 22. h3 {[%clk 0:01:30.8]} 22... Rc4
{[%clk 0:00:47.7]} 23. Ng1 {[%clk 0:01:19.4]} 23... b4 {[%clk 0:00:20.5]} 24.
cxb4 {[%clk 0:00:57.4]} 24... axb4 {[%clk 0:00:21.4]} 25. a4 {[%clk 0:00:57.3]}
25... Bxd4 {[%clk 0:00:16.1]} 26. Bxd4 {[%clk 0:00:57.8]} 26... Nf5 {[%clk
0:00:16.5]} 27. Be5 {[%clk 0:00:54.6]} 27... Ng3+ {[%clk 0:00:16.1]} 28. Kh2
{[%clk 0:00:55.2]} 28... Nxf1+ {[%clk 0:00:16.6]} 29. Rxf1 {[%clk 0:00:55.3]}
29... Qc5 {[%clk 0:00:14.1]} 30. b3 {[%clk 0:00:25]} 30... Rc2 {[%clk
0:00:13.9]} 31. Qd1 {[%clk 0:00:25.6]} 31... Rf2 {[%clk 0:00:09.5]} 32. Nf3
{[%clk 0:00:24]} 32... Rxf1 {[%clk 0:00:06.7]} 33. Qxf1 {[%clk 0:00:24.9]} 33...
Qc6 {[%clk 0:00:02.7]} 34. Nd4 {[%clk 0:00:24.8]} 34... Qb7 {[%clk 0:00:01.9]}
35. Qe2 {[%clk 0:00:24]} 35... Rf7 {[%clk 0:00:02.1]} 36. h4 {[%clk 0:00:23.7]}
36... h5 {[%clk 0:00:01.8]} 37. Qe3 {[%clk 0:00:23.3]} 37... Kh7 {[%clk
0:00:02]} 38. Qg3 {[%clk 0:00:23.2]} 38... Qc8 {[%clk 0:00:01.9]} 39. Qg5 {[%clk
0:00:22.9]} 39... Qf8 {[%clk 0:00:02]} 40. g4 {[%clk 0:00:21.5]} 40... Qe7
{[%clk 0:00:02.3]} 41. gxh5 {[%clk 0:00:19.9]} 41... Qxg5 {[%clk 0:00:02.9]} 42.
hxg5 {[%clk 0:00:18.4]} 42... gxh5 {[%clk 0:00:03.6]} 43. Kg3 {[%clk 0:00:18.1]}
43... Kg6 {[%clk 0:00:04.1]} 44. Nc2 {[%clk 0:00:18.3]} 44... Bc8 {[%clk
0:00:03.9]} 45. Nd4 {[%clk 0:00:14.4]} 45... Rb7 {[%clk 0:00:02.2]} 46. Nf3
{[%clk 0:00:13.3]} 46... Bd7 {[%clk 0:00:02.3]} 47. Nh4+ {[%clk 0:00:13.3]}
47... Kh7 {[%clk 0:00:01.7]} 48. g6+ {[%clk 0:00:13.8]} 48... Kh6 {[%clk
0:00:02.1]} 49. g7 {[%clk 0:00:14.2]} 49... Kh7 {[%clk 0:00:02.7]} 50. Nf3
{[%clk 0:00:13.3]} 50... Be8 {[%clk 0:00:02.8]} 51. Ng5+ {[%clk 0:00:13]} 51...
Kg8 {[%clk 0:00:03.4]} 52. Nxe6 {[%clk 0:00:13.6]} 52... Re7 {[%clk 0:00:03.5]}
53. Nd4 {[%clk 0:00:09.1]} 53... Bg6 {[%clk 0:00:02.2]} 54. Nc6 {[%clk
0:00:07.8]} 54... Rf7 {[%clk 0:00:01.9]} 55. Kh4 {[%clk 0:00:06.9]} 55... Bc2
{[%clk 0:00:01.8]} 56. Nd4 {[%clk 0:00:04.9]} 56... Bd3 {[%clk 0:00:02.3]} 57.
Kxh5 {[%clk 0:00:04.5]} 57... Kh7 {[%clk 0:00:02.7]} 58. Kg5 {[%clk 0:00:04.3]}
58... Kg8 {[%clk 0:00:02.2]} 59. f5 {[%clk 0:00:04.7]} 59... Re7 {[%clk
0:00:02]} 60. Kf4 {[%clk 0:00:04.4]} 60... Rd7 {[%clk 0:00:01.6]} 61. f6 {[%clk
0:00:05.3]} 61... Kf7 {[%clk 0:00:01.8]} 62. Nf3 {[%clk 0:00:04.1]} 62... Bh7
{[%clk 0:00:01.4]} 63. Ng5+ {[%clk 0:00:05]} 63... Kg6 {[%clk 0:00:01.6]} 64.
Nxh7 {[%clk 0:00:05.2]} 64... Kxh7 {[%clk 0:00:01.7]} 65. Kf5 {[%clk 0:00:06.1]}
65... Kg8 {[%clk 0:00:02.1]} 66. Ke6 {[%clk 0:00:06.4]} 66... Rf7 {[%clk
0:00:02.6]} 67. Bd4 {[%clk 0:00:06.9]} 67... Rc7 {[%clk 0:00:02.1]} 68. Kxd5
{[%clk 0:00:06.7]} 68... Kf7 {[%clk 0:00:02.8]} 69. a5 {[%clk 0:00:06.8]} 69...
Rc3 {[%clk 0:00:03.1]} 70. a6 {[%clk 0:00:06.5]} 70... Rxb3 {[%clk 0:00:03.7]}
71. a7 {[%clk 0:00:06.8]} 71... Ra3 {[%clk 0:00:04.3]} 72. Kc4 {[%clk
0:00:07.4]} 72... b3 {[%clk 0:00:04.9]} 73. Kb4 {[%clk 0:00:07.3]} 73... b2
{[%clk 0:00:03.9]} 74. Kxa3 {[%clk 0:00:07.2]} 74... b1=Q {[%clk 0:00:04.2]} 75.
a8=Q {[%clk 0:00:08.1]} 75... Qd3+ {[%clk 0:00:02.3]} 76. Ka2 {[%clk 0:00:07.6]}
76... Qc4+ {[%clk 0:00:02.8]} 77. Kb1 {[%clk 0:00:05.7]} 77... Qd3+ {[%clk
0:00:02.7]} 78. Ka2 {[%clk 0:00:05.6]} 78... Qc4+ {[%clk 0:00:03.1]} 79. Ka3
{[%clk 0:00:03.8]} 79... Qd3+ {[%clk 0:00:03.5]} 80. Ka2 {[%clk 0:00:01.8]}
1/2-1/2